bitfinex-derivatives/quotes_SOLF0:USTF0_20251229
["timestamp","ask_amount","ask_price","bid_price","bid_amount"]
[1766972548580,23.94,129.55,129.41,6.62875227]
[1766972548783,23.94,129.55,129.41,30.34875227]
[1766972548981,43.94,129.54,129.41,45.11875227]
[1766972549283,0.04924753,129.49,129.46,0.04866721]
[1766972549483,0.04924753,129.49,129.46,0.05145064]
[1766972550282,0.04924753,129.49,129.41,38.49]
[1766972550283,23.98924753,129.49,129.41,6.62875227]
[1766972550571,23.94,129.49,129.39,6.62875227]
[1766972550771,23.94,129.46,129.33,6.62875227]
[1766972550974,9.32414058,129.47,129.31,8.45312715]
[1766972550975,23.94,129.43,129.31,6.62875227]
[1766972551376,0.0521223,129.38,129.31,6.62875227]
[1766972552273,0.0521223,129.38,129.3,45.29875227]
[1766972552471,20.0,129.42,129.3,45.29875227]
[1766972552683,43.94,129.42,129.3,45.29875227]
[1766972552879,23.94,129.42,129.3,45.29875227]
[1766972553382,0.05690357,129.37,129.35,0.05144496]
[1766972553580,0.05894651,129.37,129.35,0.05144496]
[1766972554586,23.94,129.42,129.35,0.05144496]
[1766972555383,23.94,129.4,129.35,0.05144496]
[1766972555583,23.9918196,129.39,129.27,21.88875227]
[1766972555785,23.94,129.39,129.27,21.88875227]
[1766972556089,23.94,129.39,129.27,15.26]
[1766972556090,20.0,129.38,129.27,15.26]
[1766972556483,43.94,129.38,129.27,15.26]
[1766972556694,39.92692737,129.38,129.31,0.05417022]
[1766972556884,23.94,129.34,129.21,19.53]
[1766972557585,23.94,129.31,129.17,19.6]
[1766972557791,23.94,129.31,129.23,0.0557929]
[1766972558089,23.94,129.31,129.17,19.6]
[1766972558994,23.94,129.31,129.23,0.05179877]
[1766972559289,23.94,129.31,129.17,19.6]
[1766972559290,23.94,129.3,129.17,19.6]
[1766972559488,23.94,129.28,129.13,26.92705672]
[1766972559690,23.94,129.28,129.13,19.98]
[1766972559885,23.94,129.28,129.19,0.05164796]
[1766972560086,23.94,129.28,129.13,19.98]
[1766972560890,23.94,129.28,129.19,0.05091245]
[1766972561090,23.94,129.28,129.13,19.98]
[1766972561686,16.2164253,129.25,129.13,19.98]
[1766972562090,0.05918271,129.2,129.18,0.0549569]
[1766972562292,0.05906333,129.2,129.18,0.0549569]
[1766972564395,0.05906333,129.2,129.18,0.0049569]
[1766972564700,25.53906333,129.2,129.18,0.0049569]
[1766972565095,41.5259907,129.2,129.05,23.64]
[1766972565299,23.94,129.19,129.05,23.64]
[1766972566300,23.94,129.19,129.11,0.05184111]
[1766972566502,23.94,129.19,129.05,23.64]
[1766972566695,91.0,129.23,129.01,25.51]
[1766972566696,26.52,129.16,129.01,25.51]
[1766972567296,26.52,129.16,129.07,0.05383109]
[1766972567496,26.52,129.16,129.01,25.51]
[1766972567698,26.52,129.14,129.01,25.51]
[1766972568199,0.05449425,129.09,129.06,0.05936904]
[1766972568399,42.50692737,129.17,129.06,0.05936904]
[1766972568601,26.52,129.16,129.01,25.51]
[1766972568803,26.52,129.15,129.01,25.51]
[1766972569308,0.0565299,129.09,129.07,0.00405858]
[1766972569500,26.52,129.17,129.04,25.51]
[1766972569901,26.52,129.16,129.04,25.51]
[1766972570290,26.52,129.16,128.98,25.51]
[1766972570497,0.05220775,129.08,129.06,0.05735919]
[1766972570690,26.52,129.13,129.06,0.05735919]
[1766972571801,0.05269789,129.11,129.06,0.05735919]
[1766972574704,26.02269789,129.11,129.01,25.51]
[1766972574906,25.97,129.11,128.98,26.26]
[1766972575403,25.97,129.1,128.98,26.26]
[1766972575900,25.97,129.1,129.03,0.04888329]
[1766972576704,0.05229292,129.08,129.03,0.04888329]
[1766972577703,26.02229292,129.08,129.03,0.04888329]
[1766972578108,36.02229292,129.08,129.03,0.04888329]
[1766972578610,26.02229292,129.08,129.03,0.04888329]
[1766972578812,5.42799187,129.06,128.94,4.34598374]
[1766972578997,5.42799187,129.03,128.94,4.34598374]
[1766972579711,31.39799187,129.03,128.94,4.34598374]
[1766972579896,0.05511635,129.0,128.97,0.05605073]
[1766972580304,31.39799187,129.08,128.97,0.05605073]
[1766972580509,25.97,129.08,128.95,26.26]
[1766972581404,25.97,129.08,129.0,0.04881042]
[1766972581608,25.97,129.08,128.98,26.26]
[1766972582307,0.05525284,129.04,129.02,0.05921333]
[1766972582812,0.05525284,129.04,128.94,30.60598374]
[1766972583008,31.39799187,129.08,128.94,30.60598374]
[1766972583914,0.05393375,129.02,129.0,0.05867455]
[1766972584116,0.04907139,129.02,129.0,0.05553578]
[1766972585012,0.04907139,129.02,128.94,30.60598374]
[1766972585198,31.39799187,129.02,128.94,4.34598374]
[1766972585403,25.97,128.98,128.94,4.34598374]
[1766972585806,5.42799187,128.97,128.85,26.26]
[1766972586111,0.05392264,128.92,128.9,0.05674248]
[1766972586411,0.05906645,128.92,128.9,0.05674248]
[1766972586802,25.97,128.98,128.9,0.05674248]
[1766972587004,25.97,128.98,128.85,26.26]
[1766972587804,0.05324921,128.93,128.9,0.05108155]
[1766972588102,0.05324921,128.93,128.9,0.05187854]
[1766972588705,0.00324921,128.93,128.9,0.05187854]
[1766972588910,25.97,128.98,128.9,0.05187854]
[1766972589209,25.97,128.98,128.88,26.26]
[1766972589607,16.38409041,129.35,128.88,26.26]
[1766972589608,25.97,129.02,128.88,26.26]
[1766972589803,0.05264243,128.96,128.94,0.05350285]
[1766972590003,25.97,129.06,128.94,26.31276856]
[1766972590217,25.97,129.06,128.94,26.26]
[1766972591015,0.05522296,129.01,128.99,0.05112545]
[1766972591315,0.05314964,129.01,128.99,0.05112545]
[1766972591915,0.05314964,129.01,128.99,0.00112545]
[1766972596016,25.86,128.99,128.86,26.13]
[1766972596421,25.86,128.99,128.86,31.55799187]
[1766972596915,0.00316201,128.94,128.91,0.05720002]
[1766972597121,31.28799187,129.03,128.9,26.13]
[1766972598123,0.05630412,128.98,128.9,26.13]
[1766972598418,31.28799187,129.0,128.9,26.13]
[1766972598620,31.28799187,129.0,128.86,26.13]
[1766972598817,10.0,128.99,128.86,26.13]
[1766972599011,0.05175015,128.94,128.91,0.05095062]
[1766972599214,0.05175015,128.94,128.91,0.05619963]
[1766972602427,0.05175015,128.94,128.91,0.00815007]
[1766972603129,5.47974202,128.94,128.82,26.13]
[1766972603330,5.42799187,128.94,128.82,26.13]
[1766972603512,31.28799187,128.97,128.82,26.13]
[1766972603719,10.0,128.99,128.85,26.13]
[1766972604114,10.0,128.99,128.91,0.05415432]
[1766972604424,10.0,128.99,128.87,26.13]
[1766972604625,35.86,128.99,128.87,26.13]
[1766972605025,0.05036393,128.94,128.92,0.05009288]
[1766972605216,0.05612091,128.94,128.92,0.05009288]
[1766972605420,31.34411278,128.94,128.83,26.13]
[1766972605621,31.28799187,128.94,128.83,26.13]
[1766972606323,0.05128467,128.9,128.87,0.05364994]
[1766972606625,25.86,128.94,128.87,0.05364994]
[1766972606820,25.86,128.98,128.87,26.18364994]
[1766972607021,25.86,128.98,128.87,26.13]
[1766972607631,0.05548426,128.94,128.91,0.0508432]
[1766972608224,0.05548426,128.94,128.91,0.0008432]
[1766972610120,25.86,128.93,128.85,6.93358039]
[1766972610424,31.28799187,128.9,128.8,9.67640266]
[1766972610728,10.0,128.89,128.8,2.74282227]
[1766972611026,31.28799187,128.94,128.81,26.13]
[1766972611230,0.05083917,128.89,128.86,0.05211735]
[1766972611534,0.05083917,128.89,128.86,0.05600516]
[1766972611828,0.00083917,128.89,128.86,0.05600516]
[1766972614630,0.00083917,128.89,128.81,6.93358039]
[1766972614831,3.34763108,128.9,128.8,35.80640266]
[1766972615233,3.34763108,128.9,128.8,28.87282227]
[1766972615522,9.0,128.89,128.8,28.87282227]
[1766972615729,0.04881288,128.86,128.83,0.05238051]
[1766972617029,29.20763108,128.94,128.83,26.18238051]
[1766972617335,29.20763108,128.94,128.83,26.13]
[1766972617933,29.20763108,128.94,128.87,0.05484629]
[1766972617934,0.05780379,128.9,128.87,0.05484629]
[1766972618635,0.05780379,128.9,128.82,26.13]
[1766972618834,38.20763108,128.94,128.83,26.13]
[1766972619627,0.04983045,128.9,128.87,0.05004107]
[1766972620632,3.39746153,128.9,128.87,0.05004107]
[1766972621035,3.39746153,128.9,128.87,4.107e-05]
[1766972621535,3.39746153,128.9,128.81,6.93358039]
[1766972621745,29.20763108,128.9,128.81,6.93358039]
[1766972622539,0.0593466,128.87,128.84,0.05479777]
[1766972622838,0.0593466,128.87,128.76,33.06358039]
[1766972622839,3.34763108,128.86,128.76,33.06358039]
[1766972623033,3.34763108,128.82,128.75,6.93358039]
[1766972623237,3.34763108,128.82,128.73,26.13]
[1766972623435,3.34763108,128.8,128.71,33.06358039]
[1766972623634,3.34763108,128.83,128.73,33.06358039]
[1766972623840,3.34763108,128.83,128.77,0.00196745]
[1766972623841,3.40572896,128.79,128.77,0.00196745]
[1766972624036,3.34763108,128.79,128.7,6.93358039]
[1766972624339,25.86,128.83,128.7,26.13]
[1766972624533,3.34763108,128.81,128.7,26.13]
[1766972624739,29.20763108,128.81,128.7,26.13]
[1766972625039,0.05094026,128.77,128.74,0.05083685]
[1766972626838,30.00763108,128.85,128.74,28.57083685]
[1766972627142,30.00763108,128.85,128.74,26.96]
[1766972627344,30.00763108,128.89,128.77,30.30763108]
[1766972627748,0.05711147,128.84,128.82,0.05188102]
[1766972627946,0.05815294,128.84,128.82,0.05188102]
[1766972628246,26.66,128.89,128.82,0.05188102]
[1766972629140,0.05236658,128.87,128.82,0.05188102]
[1766972629337,26.66,128.93,128.82,0.05188102]
[1766972629547,26.66,128.93,128.81,30.30763108]
[1766972630442,0.05336197,128.88,128.86,0.05161099]
[1766972630646,0.05873498,128.88,128.86,0.05161099]
[1766972632052,0.05873498,128.88,128.86,0.00161099]
[1766972640352,27.45,128.98,128.87,28.48]
[1766972640558,27.45,128.98,128.87,31.82763108]
[1766972641255,0.04995631,128.94,128.91,0.05225731]
[1766972643955,27.45,128.98,128.91,0.05225731]
[1766972644859,0.05033293,128.96,128.91,0.05225731]
[1766972646464,27.50033293,128.96,128.91,0.05225731]
[1766972647052,36.50033293,128.96,128.91,0.05225731]
[1766972649356,30.79763108,128.94,128.84,7.00778304]
[1766972649557,30.79763108,128.9,128.78,35.48778304]
[1766972649760,30.79763108,128.9,128.78,28.48]
[1766972649964,30.79763108,128.88,128.78,28.48]
[1766972650359,0.0524752,128.84,128.82,0.05214148]
[1766972650866,0.0524752,128.84,128.82,0.00214148]
[1766972651072,29.0624752,128.84,128.75,7.00778304]
[1766972651265,30.79763108,128.84,128.74,28.48]
[1766972652071,0.05011766,128.8,128.78,0.00497874]
[1766972654368,30.79763108,128.81,128.7,28.48]
[1766972654568,30.79763108,128.81,128.67,8.45312715]
[1766972654569,30.79763108,128.79,128.68,7.00778304]
[1766972654774,30.79763108,128.79,128.68,35.48778304]
[1766972655075,27.45,128.79,128.68,35.48778304]
[1766972655372,30.79763108,128.79,128.72,0.05204189]
[1766972656270,0.0574098,128.77,128.72,0.05204189]
[1766972656568,31.13504088,128.77,128.72,0.05204189]
[1766972656874,3.34763108,128.75,128.72,0.05204189]
[1766972657069,31.07763108,128.75,128.72,0.05204189]
[1766972657269,27.73,128.73,128.64,28.54]
[1766972657571,27.73,128.73,128.63,31.29714724]
[1766972657772,31.07763108,128.83,128.71,31.88763108]
[1766972658370,0.04882793,128.78,128.76,0.05581886]
[1766972658570,0.05761034,128.78,128.76,0.05581886]
[1766972659977,0.05761034,128.78,128.71,28.54]
[1766972660172,0.05761034,128.78,128.68,28.54]
[1766972660367,31.07763108,128.81,128.7,31.88763108]
[1766972660775,39.07763108,128.81,128.7,31.88763108]
[1766972660973,0.0511142,128.77,128.74,0.05537293]
[1766972661377,0.0511142,128.77,128.7,31.88763108]
[1766972662177,0.0511142,128.77,128.72,3.34763108]
[1766972662575,27.73,128.84,128.74,3.34763108]
[1766972662981,27.73,128.84,128.74,31.88763108]
[1766972663276,27.73,128.84,128.76,3.34763108]
[1766972663470,27.73,128.87,128.78,3.34763108]
[1766972663678,0.05665718,128.84,128.81,0.04979991]
[1766972663979,0.05012605,128.84,128.81,0.05651075]
[1766972668782,0.05012605,128.84,128.73,35.54778304]
[1766972668981,27.73,128.85,128.75,3.34763108]
[1766972669780,0.05356117,128.81,128.79,0.05491939]
[1766972669984,0.05356117,128.81,128.79,0.00491939]
[1766972670578,27.78356117,128.81,128.71,3.34763108]
[1766972670771,27.73,128.81,128.71,3.34763108]
[1766972671574,0.053297,128.77,128.75,0.05456108]
[1766972672683,27.73,128.84,128.75,3.40219216]
[1766972672882,27.73,128.84,128.75,3.34763108]
[1766972673687,0.05890213,128.81,128.78,0.05818068]
[1766972674987,8.0,128.87,128.78,5.5039266]
[1766972675185,27.73,128.88,128.78,5.44574592]
[1766972675790,0.05657078,128.84,128.82,0.05854905]
[1766972676486,0.05657078,128.84,128.76,28.54]
[1766972676682,27.73,128.88,128.78,5.44574592]
[1766972677488,0.05664533,128.84,128.82,0.0495712]
[1766972678396,0.05664533,128.84,128.78,5.44574592]
[1766972678594,0.05664533,128.84,128.74,33.98574592]
[1766972678794,27.73,128.86,128.74,33.98574592]
[1766972678989,27.73,128.86,128.74,28.54]
[1766972679205,27.73,128.86,128.75,5.44574592]
[1766972679489,0.05325299,128.81,128.79,0.05445013]
[1766972679696,0.05565522,128.81,128.79,0.05445013]
[1766972680696,27.73,128.86,128.79,0.05445013]
[1766972681588,0.05601413,128.84,128.79,0.05445013]
[1766972682990,27.73,128.79,128.63,2.75714724]
[1766972683191,27.73,128.74,128.63,31.29714724]
[1766972683381,5.44574592,128.75,128.63,31.29714724]
[1766972683382,5.44574592,128.77,128.65,28.54]
[1766972683583,33.17574592,128.77,128.65,28.54]
[1766972683986,0.05241725,128.72,128.65,28.54]
[1766972684997,0.05241725,128.72,128.67,0.0492706]
[1766972687600,8.0,128.76,128.67,26.2292706]
[1766972687800,8.0,128.76,128.67,26.18]
[1766972688289,27.73,128.77,128.67,26.18]
[1766972688494,0.05759824,128.73,128.71,0.05213103]
[1766972689598,0.05759824,128.73,128.71,0.00213103]
[1766972695398,0.05759824,128.73,128.64,26.18]
[1766972695706,27.21,128.75,128.64,26.18]
[1766972696412,0.05031303,128.71,128.68,0.04989451]
[1766972697300,27.21,128.92,128.71,26.18]
[1766972697495,27.21,128.92,128.8,5.44574592]
[1766972697904,22.84190921,129.08,128.76,5.44574592]
[1766972697905,5.44574592,128.97,128.84,5.44574592]
[1766972698106,0.05487399,128.92,128.84,5.44574592]
[1766972698309,27.21,128.96,128.86,5.44574592]
[1766972698498,27.21,128.96,128.88,5.44574592]
[1766972699100,0.0550538,128.93,128.88,5.44574592]
[1766972700210,0.0550538,128.93,128.89,0.05861032]
[1766972700800,37.24,129.0,128.9,5.44574592]
[1766972701005,37.24,129.0,128.94,5.44574592]
[1766972701206,29.24,129.0,128.94,5.44574592]
[1766972701405,29.24,129.06,128.94,5.44574592]
[1766972701809,0.05302133,129.01,128.96,5.44574592]
[1766972702304,0.05302133,129.01,128.94,5.44574592]
[1766972702500,29.24,129.04,128.94,5.44574592]
[1766972702903,0.04924405,129.0,128.98,0.04979274]
[1766972703504,0.04924405,129.0,128.95,5.44574592]
[1766972703709,29.24,129.04,128.95,5.44574592]
[1766972704214,8.0,129.03,128.95,5.44574592]
[1766972704416,0.05389007,129.0,128.98,0.05218805]
[1766972705418,29.24,129.07,128.98,0.05218805]
[1766972705715,29.24,129.07,128.97,5.44574592]
[1766972705916,29.24,129.07,128.95,33.54574592]
[1766972706412,29.24,129.07,129.0,0.0490297]
[1766972707513,0.05425776,129.05,129.0,0.0490297]
[1766972708020,29.06170413,129.07,129.0,0.0490297]
[1766972708207,8.0,129.06,129.0,0.0490297]
[1766972709021,0.05053058,129.04,129.0,0.0490297]
[1766972709217,5.44574592,129.13,129.0,33.59477562]
[1766972709419,5.44574592,129.11,129.0,28.1]
[1766972710122,29.24,129.1,129.0,28.1]
[1766972710322,0.04987852,129.07,129.04,0.05620284]
[1766972710712,0.04987852,129.07,128.96,28.1]
[1766972710915,29.24,129.08,128.96,28.1]
[1766972711420,29.24,129.1,128.98,28.1]
[1766972711817,0.04984452,129.05,129.03,0.05694819]
[1766972712018,0.05095952,129.05,129.03,0.05694819]
[1766972712320,29.24,129.18,129.03,28.15694819]
[1766972712521,29.24,129.14,129.03,28.1]
[1766972713217,34.68574592,129.13,129.03,28.1]
[1766972713418,0.05919574,129.09,129.07,0.05185371]
[1766972715618,27.1,129.19,129.08,36.28574592]
[1766972715816,27.1,129.19,129.07,0.05185371]
[1766972715817,32.54574592,129.16,129.03,29.3]
[1766972716818,0.05174242,129.11,129.08,0.05137379]
[1766972717017,0.05174242,129.11,129.08,0.05173669]
[1766972717222,0.05174242,129.11,129.08,0.00173669]
[1766972717611,27.1,129.18,129.08,29.30173669]
[1766972717813,32.54574592,129.23,129.08,29.3]
[1766972718119,27.1,129.26,129.18,0.23229253]
[1766972718418,5.44574592,129.3,129.18,0.00229253]
[1766972718419,32.54574592,129.23,129.18,0.00229253]
[1766972718619,32.54574592,129.21,129.09,29.3]
[1766972719222,32.54574592,129.21,129.09,34.74574592]
[1766972719421,27.1,129.21,129.09,34.74574592]
[1766972719819,27.1,129.21,129.14,0.05084932]
[1766972720216,96.66574592,129.3,129.14,0.05084932]
[1766972720217,27.1,129.25,129.14,0.05084932]
[1766972720425,27.1,129.25,129.15,34.74574592]
[1766972720624,32.54574592,129.29,129.15,34.74574592]
[1766972720819,0.05378729,129.23,129.15,34.74574592]
[1766972721124,27.1,129.26,129.15,29.3]
[1766972721819,0.05706564,129.22,129.12,29.3]
[1766972722022,27.1,129.22,129.12,29.3]
[1766972722817,27.1,129.22,129.16,0.04905804]
[1766972723019,0.0564073,129.18,129.08,29.3]
[1766972723218,32.54574592,129.18,129.04,29.3]
[1766972723530,32.54574592,129.18,129.0,5.44574592]
[1766972723531,27.1,129.18,129.08,29.3]
[1766972723720,5.44574592,129.21,129.08,29.3]
[1766972723920,0.05022826,129.16,129.13,0.05064559]
[1766972724128,0.05022826,129.16,129.13,0.05023604]
[1766972725123,0.00022826,129.16,129.13,0.05023604]
[1766972726225,0.00022826,129.16,129.04,34.74574592]
[1766972726417,5.44574592,129.17,129.04,34.74574592]
[1766972726819,32.54574592,129.19,129.07,29.3]
[1766972727326,27.1,129.19,129.12,0.05618415]
[1766972727527,32.54574592,129.15,129.03,29.3]
[1766972727728,27.1,129.15,129.03,34.74574592]
[1766972728230,5.44574592,129.14,129.03,29.3]
[1766972728427,0.05793024,129.1,129.07,0.05326667]
[1766972729532,91.16,129.23,129.07,0.05326667]
[1766972729725,5.44574592,129.16,129.03,34.74574592]
[1766972729925,5.44574592,129.14,129.03,29.3]
[1766972730126,27.1,129.13,129.03,29.3]
[1766972730326,32.54574592,129.12,128.99,34.74574592]
[1766972730530,32.54574592,129.12,129.04,0.05165206]
[1766972730531,0.05825374,129.07,129.04,0.05165206]
[1766972730732,32.54574592,129.12,128.99,29.3]
[1766972730935,27.1,129.12,128.99,34.74574592]
[1766972731632,0.05282881,129.07,129.04,0.05503821]
[1766972731822,0.05282881,129.07,129.04,0.05111213]
[1766972732030,26.49882084,129.12,129.04,0.05111213]
[1766972732224,26.49882084,129.12,128.99,34.74574592]
[1766972733126,0.0584314,129.07,129.04,0.057678]
[1766972733342,0.05239953,129.07,129.04,0.05578901]
[1766972737545,0.05239953,129.07,128.99,29.3]
[1766972737546,0.05239953,129.07,128.99,32.63804521]
[1766972737847,30.43804521,129.1,128.99,32.63804521]
[1766972738554,0.0582103,129.06,129.03,0.05829156]
[1766972738746,0.0582103,129.06,128.97,3.33804521]
[1766972738941,27.1,129.08,128.97,32.63804521]
[1766972739750,0.05884081,129.04,129.01,0.05168885]
[1766972741156,27.1,129.08,129.01,0.05168885]
[1766972741750,29.43,129.04,128.94,30.57804521]
[1766972742655,29.43,129.04,128.94,27.24]
[1766972742861,0.05797726,129.0,128.98,0.04913607]
[1766972743564,0.05797726,129.0,128.95,3.33804521]
[1766972743565,0.05797726,129.0,128.94,37.51022924]
[1766972743866,0.05797726,129.0,128.94,30.57804521]
[1766972744249,0.05797726,129.0,128.94,3.33804521]
[1766972744450,0.05797726,129.0,128.96,0.05295876]
[1766972745657,29.99,129.05,128.96,0.05295876]
[1766972745856,29.99,129.05,128.95,3.33804521]
[1766972746165,29.99,129.05,128.97,3.33804521]
[1766972746560,3.33804521,129.08,128.98,3.33804521]
[1766972746561,29.99,129.08,128.98,3.33804521]
[1766972746763,0.05344794,129.04,129.02,0.05726886]
[1766972751964,29.99,129.12,129.02,28.20726886]
[1766972752163,29.99,129.18,129.07,3.33804521]
[1766972753073,0.05913887,129.14,129.11,0.00063804]
[1766972753273,29.99,129.16,129.07,3.33804521]
[1766972754064,0.05452515,129.13,129.1,0.05443802]
[1766972755372,29.99,129.21,129.11,3.33804521]
[1766972756369,0.05726732,129.17,129.11,3.33804521]
[1766972757471,0.05726732,129.17,129.13,0.05540605]
[1766972761866,29.15726732,129.17,129.1,3.33804521]
[1766972762072,29.1,129.17,129.07,28.15]
[1766972762274,29.1,129.17,129.08,3.33804521]
[1766972762472,29.1,129.17,129.07,3.33804521]
[1766972762679,29.1,129.17,129.09,3.33804521]
[1766972762869,29.1,129.17,129.12,0.04953124]
[1766972763071,0.05053627,129.14,129.12,0.04953124]
[1766972763274,29.1,129.22,129.12,0.04953124]
[1766972763578,29.1,129.22,129.13,31.93804521]
[1766972763764,29.1,129.22,129.15,3.33804521]
[1766972764272,0.05214429,129.2,129.17,0.04982549]
[1766972764981,29.1,129.25,129.17,3.3878707]
[1766972765280,29.1,129.25,129.17,3.33804521]
[1766972765575,29.1,129.25,129.15,31.93804521]
[1766972765965,0.05117686,129.21,129.19,0.05126284]
[1766972766173,1.34667105,129.36,129.19,31.98930805]
[1766972766375,29.1,129.35,129.26,3.33804521]
[1766972766567,1.93461884,129.41,129.2,6.93218403]
[1766972766568,29.1,129.32,129.2,6.93218403]
[1766972766770,29.1,129.3,129.18,3.33804521]
[1766972767076,3.33804521,129.36,129.18,3.33804521]
[1766972767077,29.1,129.28,129.18,3.33804521]
[1766972767278,0.05674244,129.24,129.18,3.33804521]
[1766972768380,0.05674244,129.24,129.2,0.05231879]
[1766972770875,29.15674244,129.24,129.13,3.33804521]
[1766972771078,29.1,129.24,129.13,3.33804521]
[1766972771779,29.1,129.24,129.17,0.05733427]
[1766972772079,0.05332831,129.2,129.17,0.05733427]
[1766972776776,29.1,129.24,129.17,0.05733427]
[1766972777375,3.33804521,129.29,129.11,29.61]
[1766972777376,29.22,129.22,129.11,29.61]
[1766972777775,29.22,129.22,129.14,3.33804521]
[1766972778283,0.05668248,129.19,129.17,0.05140098]
[1766972778678,0.05668248,129.19,129.17,0.00140098]
[1766972780468,29.27668248,129.19,129.17,0.00140098]
[1766972783580,29.22,129.17,129.04,6.93218403]
[1766972783882,29.22,129.17,129.06,3.33804521]
[1766972784586,29.26901068,129.13,129.1,0.00070332]
[1766972784786,29.22,129.13,129.04,3.33804521]
[1766972785687,0.05693512,129.1,129.07,0.00425073]
[1766972787384,0.05693512,129.1,129.06,0.00229594]
[1766972788689,29.22,129.11,129.06,0.00229594]
[1766972789587,0.0574634,129.1,129.07,0.05908184]
[1766972790087,29.22,129.14,129.07,0.05908184]
[1766972790293,29.22,129.14,129.08,3.33804521]
[1766972791178,0.0579433,129.12,129.1,0.05711555]
[1766972791378,0.0579433,129.12,129.08,3.33804521]
[1766972792089,0.0579433,129.12,129.04,29.61]
[1766972792387,29.22,129.14,129.07,3.39412026]
[1766972793480,0.05705139,129.12,129.07,3.39412026]
[1766972796497,0.05705139,129.12,129.07,0.05607505]
[1766972798095,0.05705139,129.12,129.05,5.42124016]
[1766972798096,29.22,129.11,129.05,5.42124016]
[1766972799003,0.04989476,129.09,129.07,0.05792774]
[1766972800987,0.04989476,129.09,129.04,5.42124016]
[1766972801195,29.26989476,129.09,129.02,5.42124016]
[1766972805300,29.26989476,129.09,129.0,34.66124016]
[1766972805500,29.26989476,129.09,129.02,5.42124016]
[1766972805501,0.05248045,129.06,129.02,5.42124016]
[1766972806304,0.05248045,129.06,129.0,34.66124016]
[1766972814505,0.05248045,129.06,129.0,5.42124016]
[1766972815102,0.05248045,129.06,129.0,34.48124016]
[1766972816511,0.05248045,129.06,129.0,29.06]
[1766972817804,0.05248045,129.06,128.98,34.48124016]
[1766972818010,29.48,129.07,128.98,34.48124016]
[1766972818909,29.48,129.07,128.99,5.42124016]
[1766972819209,29.48,129.07,129.01,0.05865529]
[1766972820608,29.48,129.11,129.03,2.4348513]
[1766972820813,29.48,129.14,129.05,31.4948513]
[1766972821011,0.05637353,129.11,129.08,0.05526094]
[1766972821916,29.48,129.14,129.08,0.05526094]
[1766972822111,29.48,129.14,129.09,2.4348513]
[1766972822915,0.05637034,129.13,129.09,2.4348513]
[1766972824109,29.48,129.17,129.09,2.4348513]
[1766972824311,29.48,129.17,129.11,2.4348513]
[1766972824514,2.4348513,129.2,129.13,2.4348513]
[1766972824515,29.48,129.2,129.13,2.4348513]
[1766972824721,29.48,129.17,129.08,2.4348513]
[1766972825120,0.05155577,129.14,129.11,0.0530913]
[1766972825416,31.96640707,129.14,129.05,9.36703533]
[1766972825619,31.9148513,129.14,129.05,2.4348513]
[1766972825819,31.9148513,129.14,129.04,31.4948513]
[1766972826013,29.48,129.14,129.05,2.4348513]
[1766972826218,29.48,129.14,129.07,2.4348513]
[1766972826418,0.05514224,129.12,129.05,38.42703533]
[1766972826823,0.05514224,129.12,129.05,31.4948513]
[1766972827016,29.53514224,129.12,129.04,9.36703533]
[1766972827222,29.48,129.12,129.04,9.36703533]
[1766972827425,0.05530154,129.09,129.07,0.05566634]
[1766972827823,29.48,129.16,129.08,2.4348513]
[1766972828224,29.48,129.16,129.07,31.4948513]
[1766972828616,29.48,129.16,129.07,29.06]
[1766972828921,0.05768404,129.13,129.1,0.05229815]
[1766972830021,29.48,129.16,129.1,6.98448218]
[1766972830215,29.48,129.21,129.1,0.05229815]
[1766972830424,29.48,129.21,129.1,6.93218403]
[1766972830826,29.48,129.21,129.1,35.99218403]
[1766972831012,0.05598426,129.17,129.14,0.04884339]
[1766972831520,29.48,129.22,129.14,0.04884339]
[1766972831717,29.48,129.22,129.12,35.99218403]
[1766972832323,29.48,129.22,129.13,5.41980102]
[1766972832518,0.05056921,129.19,129.16,0.04960716]
[1766972834422,29.48,129.25,129.16,29.10960716]
[1766972834624,29.48,129.25,129.16,29.06]
[1766972835416,28.36174528,129.22,129.13,41.41198505]
[1766972835617,28.31,129.22,129.13,29.06]